bitfinex/quotes_SOLUSD_20240703
["timestamp","ask_amount","ask_price","bid_price","bid_amount"]
[1719982809841,6.7436,148.29,148.26,15.637807]
[1719982810832,15.29,148.28,148.26,0.347807]
[1719982811027,22.0344,148.27,148.26,0.347807]
[1719982811227,22.3744,148.27,148.26,0.347807]
[1719982811953,36.17039764,148.27,148.26,0.347807]
[1719982812857,29.41539764,148.27,148.26,0.347807]
[1719982813149,7.04099764,148.27,148.26,0.347807]
[1719982813327,15.29,148.3,148.26,0.347807]
[1719982813533,13.78195591,148.29,148.26,0.347807]
[1719982814438,7.03815591,148.29,148.28,22.0339]
[1719982815037,16.0911,148.38,148.3,6.7426]
[1719982815239,6.7408,148.35,148.32,15.29]
[1719982815541,7.03713092,148.36,148.33,15.29]
[1719982815746,13.77753092,148.36,148.33,15.29]
[1719982816449,7.03713092,148.36,148.34,15.29]
[1719982817450,13.77753092,148.36,148.34,15.29]
[1719982817838,13.77753092,148.36,148.31,39.5566]
[1719982818049,13.77753092,148.36,148.33,15.29]
[1719982818345,7.03713092,148.36,148.35,15.29]
[1719982818545,6.7398,148.38,148.35,15.29]
[1719982820452,13.7671878,148.39,148.33,78.0136]
[1719982820639,13.7671878,148.39,148.37,15.29]
[1719982821640,7.0282878,148.39,148.38,15.29]
[1719982821845,6.7384,148.41,148.38,15.29]
[1719982822067,6.7384,148.41,148.39,15.29]
[1719982822350,6.7385,148.4,148.39,15.29]
[1719982824336,6.7394,148.39,148.38,15.29]
[1719982824733,13.76285425,148.42,148.38,15.29]
[1719982824936,7.02495425,148.42,148.39,15.29]
[1719982825145,6.7385,148.4,148.39,15.29]
[1719982825556,6.739,148.39,148.38,15.29]
[1719982825959,6.7386,148.4,148.38,15.29]
[1719982827065,6.7389,148.39,148.38,15.29]
[1719982827443,6.7386,148.4,148.38,15.29]
[1719982827641,7.02495425,148.42,148.37,16.159]
[1719982827856,7.02495425,148.42,148.41,22.028]
[1719982828162,6.7366,148.45,148.41,15.29]
[1719982828349,6.7368,148.44,148.42,15.29]
[1719982828665,6.7368,148.44,148.41,15.29]
[1719982828842,22.32159682,148.47,148.42,15.29]
[1719982828843,6.7363,148.45,148.42,15.29]
[1719982829160,6.7359,148.46,148.42,15.29]
[1719982829468,6.7359,148.46,148.43,15.29]
[1719982829967,7.03159682,148.47,148.45,15.29]
[1719982830264,16.3817,148.54,148.46,15.29]
[1719982830469,7.02927816,148.53,148.48,15.29]
[1719982830970,13.76197816,148.53,148.48,22.0247]
[1719982831136,13.76197816,148.53,148.49,15.29]
[1719982831339,13.76197816,148.53,148.49,16.08820809]
[1719982831740,13.76197816,148.53,148.49,0.79820809]
[1719982831946,7.02927816,148.53,148.46,6.7354]
[1719982832447,6.7336,148.51,148.46,6.7354]
[1719982832851,6.7332,148.52,148.45,16.8401]
[1719982833144,6.7332,148.52,148.47,6.7352]
[1719982833353,6.7336,148.51,148.47,6.7352]
[1719982833655,6.7336,148.51,148.46,6.7356]
[1719982834059,6.7342,148.5,148.46,6.7356]
[1719982834559,6.7336,148.51,148.46,6.7356]
[1719982835157,6.734,148.5,148.46,6.7356]
[1719982836354,6.7336,148.51,148.46,6.7356]
[1719982836852,6.734,148.5,148.46,6.7356]
[1719982837177,6.7336,148.51,148.46,6.7356]
[1719982837676,6.7341,148.5,148.46,6.7356]
[1719982838774,6.7336,148.51,148.46,6.7356]
[1719982840353,6.7336,148.51,148.47,6.7352]
[1719982843472,6.7331,148.52,148.47,6.7352]
[1719982844880,7.02927816,148.53,148.47,16.8375]
[1719982845168,13.76207816,148.53,148.48,6.7347]
[1719982845563,13.76207816,148.53,148.49,1.34667125]
[1719982845869,6.7331,148.52,148.49,1.34667125]
[1719982846355,6.7331,148.52,148.48,1.34667125]
[1719982846556,6.7331,148.52,148.49,1.34658055]
[1719982846773,6.7331,148.52,148.48,1.34658055]
[1719982846962,6.7331,148.52,148.47,23.5727]
[1719982846963,6.7331,148.52,148.49,1.34648986]
[1719982847164,6.7331,148.52,148.48,8.08129008]
[1719982847358,6.7331,148.52,148.49,1.34649008]
[1719982847881,6.7331,148.52,148.47,23.5727]
[1719982848174,6.7336,148.51,148.47,6.7352]
[1719982848754,7.02927816,148.53,148.5,6.7336]
[1719982848964,7.02927816,148.53,148.52,6.733]
[1719982849273,6.5457,148.61,148.51,32.717]
[1719982849473,7.03110961,148.6,148.51,32.717]
[1719982849973,6.7308,148.57,148.52,6.7329]
[1719982850174,6.7312,148.56,148.52,6.7329]
[1719982851580,6.731,148.57,148.52,6.7329]
[1719982852101,6.7313,148.56,148.52,6.7329]
[1719982852254,6.7323,148.54,148.48,23.3328]
[1719982852454,27.30110961,148.6,148.48,23.5716]
[1719982852455,6.7331,148.52,148.48,23.5716]
[1719982852667,6.7331,148.52,148.48,16.8368]
[1719982852876,6.7331,148.52,148.48,23.5716]
[1719982853262,6.7327,148.53,148.48,23.5716]
[1719982853750,6.7327,148.53,148.49,6.7343]
[1719982854381,6.7331,148.52,148.48,23.5715]
[1719982854754,6.7341,148.5,148.46,15.705]
[1719982855362,11.66820612,148.55,148.45,16.8404]
[1719982855562,6.7341,148.5,148.45,23.5763]
[1719982856361,0.34,148.54,148.42,15.1132]
[1719982856564,6.7349,148.48,148.43,6.737]
[1719982857461,6.7354,148.47,148.43,6.737]
[1719982857657,50.82,148.53,148.41,23.5819]
[1719982857862,20.27,148.51,148.41,23.5819]
[1719982858080,6.7371,148.44,148.39,6.7389]
[1719982858488,6.7371,148.44,148.4,6.7384]
[1719982858976,6.7371,148.44,148.39,6.7389]
[1719982859567,13.76904662,148.44,148.39,6.7389]
[1719982859885,7.03194662,148.44,148.41,6.738]
[1719982860192,6.7359,148.46,148.41,6.738]
[1719982860389,13.76715541,148.46,148.41,6.738]
[1719982861293,6.7363,148.45,148.41,6.738]
[1719982861667,6.7363,148.45,148.4,23.5842]
[1719982862869,6.7368,148.44,148.4,23.5842]
[1719982863070,7.03125541,148.46,148.44,16.8417]
[1719982863291,6.7354,148.47,148.43,6.737]
[1719982863687,6.735,148.48,148.44,6.7366]
[1719982863992,13.76643044,148.49,148.44,6.7366]
[1719982864178,6.7351,148.48,148.44,6.7366]
[1719982864571,6.7351,148.48,148.43,16.8424]
[1719982864572,6.7354,148.47,148.43,16.8424]
[1719982865208,6.7358,148.46,148.43,16.8424]
[1719982865508,7.03193044,148.49,148.44,6.7367]
[1719982865700,6.7352,148.48,148.43,23.5795]
[1719982866789,13.76633044,148.49,148.44,6.7365]
[1719982866993,7.03193044,148.49,148.46,6.7354]
[1719982867197,6.7338,148.51,148.46,6.7354]
[1719982867798,6.734,148.5,148.46,6.7354]
[1719982868094,6.7341,148.5,148.46,6.7357]
[1719982868889,6.7341,148.5,148.45,23.576]
[1719982869111,13.76237934,148.52,148.45,22.9911]
[1719982869280,7.02927934,148.52,148.47,16.8379]
[1719982869478,6.7327,148.53,148.47,16.8379]
[1719982869874,6.7331,148.52,148.48,6.7348]
[1719982870081,6.7331,148.52,148.47,23.5731]
[1719982870802,6.7331,148.52,148.48,6.7348]
[1719982871105,7.02894639,148.55,148.49,21.1753]
[1719982871407,6.732,148.55,148.5,6.7339]
[1719982871615,6.7322,148.54,148.5,6.7339]
[1719982872910,6.7318,148.55,148.5,6.7339]
[1719982873280,7.02773016,148.57,148.46,16.8391]
[1719982873281,36.5457,148.56,148.46,16.8391]
[1719982873488,6.7336,148.51,148.46,23.5747]
[1719982875385,22.5105,148.56,148.45,21.9999]
[1719982875598,6.7313,148.56,148.52,6.733]
[1719982876809,6.7313,148.56,148.51,6.7334]
[1719982878813,6.7317,148.55,148.51,6.7334]
[1719982879215,6.7313,148.56,148.51,6.7334]
[1719982879414,7.02773016,148.57,148.53,6.7325]
[1719982879613,13.75863016,148.57,148.52,23.5651]
[1719982882212,7.02773016,148.57,148.56,6.7312]
[1719982882415,6.7294,148.61,148.57,6.7308]
[1719982882615,13.75716221,148.62,148.57,6.7308]
[1719982883115,6.729,148.61,148.56,23.5588]
[1719982883615,13.75716221,148.62,148.57,6.7305]
[1719982883803,7.02856221,148.62,148.58,6.7301]
[1719982884003,7.02856221,148.62,148.59,6.7299]
[1719982884932,7.02856221,148.62,148.6,6.7292]
[1719982885136,0.5,148.64,148.6,6.7292]
[1719982885320,14.254979,148.64,148.6,6.7292]
[1719982885641,14.254979,148.64,148.55,30.55]
[1719982885642,6.7298,148.6,148.55,23.5604]
[1719982885811,6.7291,148.61,148.56,6.7312]
[1719982886014,6.7286,148.62,148.57,6.7307]
[1719982886316,6.7282,148.63,148.57,16.8266]
[1719982886627,6.7282,148.63,148.58,6.7302]
[1719982886922,7.527279,148.64,148.57,23.5573]
[1719982887314,6.7286,148.62,148.58,6.7302]
[1719982888124,7.527279,148.64,148.59,16.824]
[1719982888307,7.527279,148.64,148.61,6.7287]
[1719982889422,14.254979,148.64,148.59,23.5538]
[1719982889948,14.254979,148.64,148.6,6.7292]
[1719982890122,7.527279,148.64,148.6,6.7292]
[1719982891529,7.527279,148.64,148.61,6.7289]
[1719982892042,7.527279,148.64,148.6,6.7293]
[1719982892216,7.527279,148.64,148.61,6.7289]
[1719982892745,0.5,148.64,148.61,6.7286]
[1719982894328,0.5,148.64,148.6,6.7293]
[1719982894527,7.2278,148.64,148.59,23.5535]
[1719982895127,7.2278,148.64,148.6,6.7294]
[1719982895329,0.5,148.64,148.6,6.7294]
[1719982895736,0.5,148.64,148.63,6.7281]
[1719982895919,0.5,148.64,148.62,6.7284]
[1719982896119,0.5,148.64,148.61,23.5507]
[1719982896345,0.5,148.64,148.59,6.7297]
[1719982896554,7.2277,148.64,148.6,6.7293]
[1719982896731,0.5,148.64,148.61,6.7289]
[1719982898428,0.5,148.64,148.63,6.7281]
[1719982900252,0.5,148.64,148.62,23.5495]
[1719982900442,0.5,148.64,148.61,6.7289]
[1719982901430,0.5,148.64,148.6,6.7293]
[1719982902338,0.5,148.64,148.61,6.7289]
[1719982903334,0.5,148.64,148.62,6.7282]
[1719982903650,0.5,148.64,148.63,6.7281]
[1719982904261,0.5,148.64,148.62,6.7284]
[1719982905364,0.5,148.64,148.61,16.822]
[1719982905653,0.5,148.64,148.62,6.7283]
[1719982906155,0.5,148.64,148.61,23.5509]
[1719982906354,0.5,148.64,148.61,16.822]
[1719982906552,0.5,148.64,148.61,23.5509]
[1719982907756,7.2276,148.64,148.61,16.822]
[1719982908452,0.5,148.64,148.55,15.39]
[1719982908772,0.5,148.64,148.58,6.7302]
[1719982908953,0.5,148.64,148.56,6.7312]
[1719982909471,0.5,148.64,148.54,50.4893]
[1719982909472,22.7235,148.63,148.54,16.8298]
[1719982909674,22.7235,148.63,148.51,32.4314]
[1719982909675,0.17,148.62,148.51,32.4314]
[1719982909846,20.17,148.62,148.51,16.8335]
[1719982910169,6.7311,148.57,148.51,16.8335]
[1719982910577,6.7311,148.57,148.52,6.7329]
[1719982911179,6.7311,148.57,148.51,16.8335]
[1719982911846,0.17,148.61,148.53,6.7322]
[1719982912044,6.7304,148.58,148.54,6.732]
[1719982912968,6.7299,148.6,148.53,16.8307]
[1719982913345,20.0,148.62,148.53,16.8307]
[1719982913544,6.7295,148.6,148.56,6.7311]
[1719982913747,6.73,148.59,148.55,16.8286]
[1719982914574,7.02869201,148.58,148.55,16.8286]
[1719982916083,7.02869201,148.58,148.56,6.7311]
[1719982916273,7.02869201,148.58,148.55,23.56]
[1719982916857,7.02869201,148.58,148.49,30.55]
[1719982917077,6.7308,148.57,148.52,6.733]
[1719982917267,6.7313,148.56,148.51,16.8332]
[1719982917774,6.7309,148.57,148.52,6.7329]
[1719982917980,6.7309,148.57,148.53,6.7326]
[1719982918569,6.7313,148.56,148.51,16.8332]
[1719982919393,7.02869201,148.58,148.51,23.5666]
[1719982919769,6.7316,148.56,148.51,23.5666]
[1719982920307,7.02869201,148.58,148.51,23.5666]
[1719982920308,6.732,148.55,148.51,16.8332]
[1719982920466,21.9448,148.57,148.48,16.8372]
[1719982920671,6.7334,148.52,148.48,23.572]
[1719982920980,30.55,148.55,148.44,33.2686]
[1719982921166,6.7346,148.49,148.45,6.7359]
[1719982921375,20.34,148.54,148.45,6.7359]
[1719982921376,6.734,148.5,148.45,6.7359]
[1719982921863,6.735,148.48,148.44,16.8409]
[1719982922585,6.7331,148.52,148.47,6.735]
[1719982922775,6.7331,148.52,148.48,6.7348]
[1719982922976,37.1648,148.56,148.49,6.7343]
[1719982923282,6.7322,148.54,148.49,6.7343]
[1719982924279,6.6148,148.56,148.5,16.834]
[1719982924469,6.732,148.55,148.5,23.5675]
[1719982924669,6.7322,148.54,148.5,16.834]
[1719982924865,7.02894458,148.55,148.5,6.7339]
[1719982925076,13.76074458,148.55,148.51,6.7335]
[1719982925472,7.02894458,148.55,148.51,16.8328]
[1719982925670,7.02894458,148.55,148.52,6.733]
[1719982925985,6.7313,148.56,148.51,16.8328]
[1719982926298,6.7319,148.55,148.51,16.8328]
[1719982926675,6.7332,148.52,148.47,38.7205]
[1719982926872,6.7332,148.52,148.47,23.5733]
[1719982927092,6.7336,148.51,148.47,23.5733]
[1719982927409,6.7331,148.52,148.48,6.7347]
[1719982927701,7.02850512,148.56,148.48,6.7347]
[1719982927702,6.7327,148.53,148.48,6.7347]
[1719982928195,6.7327,148.53,148.49,6.7344]
[1719982928496,6.7327,148.53,148.48,6.7348]
[1719982928788,6.7332,148.52,148.48,6.7348]
[1719982928975,6.7332,148.52,148.47,23.5733]
[1719982929178,7.02850512,148.56,148.47,16.8381]
[1719982929477,20.34,148.55,148.47,16.8381]
[1719982929870,20.0,148.55,148.49,16.8355]
[1719982930069,7.02850512,148.56,148.49,16.8355]
[1719982930280,7.02850512,148.56,148.52,6.733]
[1719982930281,13.75980512,148.56,148.52,6.733]
[1719982931088,13.75980512,148.56,148.51,6.7334]
[1719982931289,6.7317,148.55,148.51,6.7334]
[1719982931496,7.02850512,148.56,148.55,6.7317]
[1719982931797,7.0415,148.64,148.57,23.5569]
[1719982931993,7.0415,148.64,148.57,16.8265]
[1719982931994,13.75427301,148.62,148.57,16.8265]
[1719982932208,6.7291,148.61,148.57,16.8265]
[1719982932570,6.7291,148.61,148.57,23.5573]
[1719982933502,7.02557301,148.62,148.58,6.7299]
[1719982933879,7.02557301,148.62,148.59,6.7295]
[1719982934078,7.02557301,148.62,148.57,16.8265]
[1719982934079,7.02557301,148.62,148.58,6.7302]
[1719982935003,13.75417301,148.62,148.58,6.7302]
[1719982936787,13.75417301,148.62,148.57,23.5572]
[1719982937109,13.75417301,148.62,148.57,16.8265]
[1719982937110,6.7292,148.61,148.57,16.8265]
[1719982937978,6.7297,148.6,148.55,6.7316]
[1719982938198,6.7297,148.6,148.56,6.7312]
[1719982938606,6.7297,148.6,148.55,6.7316]
[1719982940119,6.7297,148.6,148.56,6.7311]
[1719982940791,6.7299,148.59,148.55,6.7316]
[1719982941107,6.73,148.59,148.54,6.732]
[1719982941310,6.73,148.59,148.55,6.7315]
[1719982941492,6.7295,148.6,148.55,6.7315]
[1719982941695,7.02557301,148.62,148.53,16.8309]
[1719982941896,6.7307,148.58,148.53,23.5634]
[1719982942503,7.36852146,148.61,148.54,6.7319]
[1719982942796,7.02852146,148.61,148.55,16.8285]
[1719982942996,13.75752146,148.61,148.56,6.7309]
[1719982943597,13.75752146,148.61,148.57,6.7307]
[1719982944022,7.02852146,148.61,148.58,6.7303]
[1719982944520,7.02852146,148.61,148.57,23.5571]
[1719982944716,13.75782146,148.61,148.57,16.8264]
[1719982945907,13.75782146,148.61,148.57,23.5572]
[1719982946110,7.02852146,148.61,148.58,6.7303]
[1719982952516,7.0415,148.64,148.6,6.7291]
[1719982952723,14.06751359,148.64,148.6,6.7291]
[1719982953509,14.25361359,148.64,148.6,6.7291]
[1719982953830,7.52601359,148.64,148.62,6.7285]
[1719982954034,7.52601359,148.64,148.61,16.8218]
[1719982954697,7.52601359,148.64,148.61,23.5506]
[1719982955507,7.52601359,148.64,148.61,16.8218]
[1719982957127,7.52601359,148.64,148.61,23.5508]
[1719982957315,7.52601359,148.64,148.61,16.8218]
[1719982957509,7.52601359,148.64,148.61,23.5505]
[1719982957829,7.52601359,148.64,148.61,38.8005]
[1719982959508,7.52601359,148.64,148.61,23.5505]
[1719982961322,22.77601359,148.64,148.61,16.8218]
[1719982961509,22.77601359,148.64,148.61,23.5507]
[1719982961716,7.52601359,148.64,148.61,23.5507]
[1719982964329,7.52601359,148.64,148.62,6.7283]
[1719982964534,7.52601359,148.64,148.63,6.7281]
[1719982964707,0.5,148.64,148.62,6.7284]
[1719982965434,0.5,148.64,148.61,16.8218]
[1719982965727,7.2277,148.64,148.61,16.8218]
[1719982966027,22.4777,148.64,148.61,16.8218]
[1719982967231,15.75,148.64,148.61,16.8218]
[1719982967714,15.75,148.64,148.61,23.5507]
[1719982968133,0.5,148.64,148.62,6.7285]
[1719982968335,0.5,148.64,148.61,23.5507]
[1719982969826,0.5,148.64,148.58,16.8251]
[1719982970033,15.25,148.62,148.58,23.5553]
[1719982970627,15.25,148.61,148.58,23.5553]
[1719982970931,0.5,148.64,148.58,23.5553]
[1719982971225,15.25,148.61,148.58,23.5553]
[1719982973929,15.25,148.61,148.59,6.7297]
[1719982976617,15.25,148.61,148.6,6.7294]
[1719982976817,7.02576299,148.63,148.62,6.7285]
[1719982977021,0.5,148.64,148.63,23.5483]
[1719982978945,0.5,148.64,148.61,6.7287]
[1719982978946,15.75,148.64,148.61,6.7287]
[1719982979236,0.5,148.64,148.61,6.7287]
[1719982979413,0.5,148.64,148.62,16.8208]
[1719982979814,0.5,148.64,148.62,23.5492]
[1719982981040,15.75,148.64,148.59,16.8241]
[1719982981246,15.25,148.63,148.6,6.7294]
[1719982981545,0.5,148.64,148.59,32.0741]
[1719982981713,15.75,148.64,148.59,32.0741]
[1719982982727,15.75,148.64,148.61,6.729]
[1719982983229,15.75,148.64,148.6,6.7293]
[1719982984211,0.5,148.64,148.61,16.822]
[1719982984411,0.5,148.64,148.62,0.79908161]
[1719982984618,0.5,148.64,148.63,6.7281]
[1719982986047,0.5,148.64,148.62,22.77758161]
[1719982986217,0.5,148.64,148.61,38.8009]
[1719982987034,0.5,148.64,148.6,6.7293]
[1719982987535,0.5,148.64,148.58,16.8251]
[1719982987729,15.25,148.62,148.57,6.7304]
[1719982988842,15.25,148.62,148.58,6.7303]
[1719982990246,15.25,148.62,148.57,6.7308]
[1719982990632,15.25,148.61,148.57,6.7308]
[1719982991748,15.25,148.61,148.58,6.7303]
[1719982993657,16.6294,148.63,148.54,33.1047]
[1719982993821,15.25,148.57,148.54,16.8299]
[1719982994142,15.25,148.57,148.53,6.7324]
[1719982994340,6.3116,148.62,148.53,32.081]
[1719982994543,15.25,148.59,148.53,15.25]
[1719982995549,15.25,148.59,148.55,23.5606]
[1719982995759,15.25,148.59,148.54,6.732]
[1719982996052,15.25,148.58,148.54,6.732]
[1719982999653,7.02865153,148.59,148.54,6.732]
[1719982999861,15.25,148.58,148.52,23.5646]
[1719983000038,15.25,148.55,148.52,16.8319]
[1719983000238,15.25,148.55,148.51,6.7334]
[1719983001256,15.25,148.54,148.49,16.8354]
[1719983001443,15.25,148.53,148.49,23.5695]
[1719983002036,7.02865153,148.59,148.49,32.0854]
[1719983002366,15.25,148.55,148.52,6.733]
[1719983002845,15.25,148.55,148.51,6.7334]
[1719983006539,15.25,148.56,148.51,6.7334]
[1719983007844,15.25,148.55,148.49,16.8354]
[1719983008044,15.25,148.54,148.49,16.8354]
[1719983008565,15.25,148.53,148.48,21.9845]
[1719983008740,15.25,148.53,148.48,15.25]
[1719983009140,15.25,148.53,148.48,21.9847]
[1719983009449,7.03078227,148.55,148.47,55.1024]
[1719983009638,7.03078227,148.55,148.54,6.7321]
[1719983009837,15.25,148.59,148.54,6.7321]
[1719983010037,22.28058715,148.59,148.54,6.7321]
[1719983012067,22.28058715,148.59,148.53,21.9824]
[1719983013248,7.03058715,148.59,148.55,15.25]
[1719983013442,7.03058715,148.59,148.55,21.9816]
[1719983013749,15.25,148.61,148.56,15.25]
[1719983013952,7.02775607,148.62,148.56,15.25]
[1719983014566,7.02775607,148.62,148.58,38.3227]
[1719983014946,7.02775607,148.62,148.59,6.7298]
[1719983015136,15.75,148.64,148.59,6.7298]
[1719983015337,22.77660776,148.64,148.59,6.7298]
[1719983015850,22.77660776,148.64,148.58,48.4182]
[1719983016047,7.52660776,148.64,148.58,16.3427]
[1719983016253,15.25,148.61,148.55,21.9813]
[1719983016468,15.25,148.61,148.56,26.7312]
[1719983017358,15.25,148.61,148.56,41.9812]
[1719983017561,15.25,148.6,148.56,20.0]
[1719983017865,15.25,148.59,148.54,54.5538]
[1719983018045,15.25,148.59,148.55,20.0]
[1719983018460,15.25,148.59,148.55,26.7316]
[1719983018844,15.25,148.59,148.55,6.7316]
[1719983019450,15.25,148.6,148.55,6.7316]
[1719983021468,7.52660776,148.64,148.56,6.7311]
[1719983021673,7.52660776,148.64,148.56,16.8277]
[1719983021878,7.52660776,148.64,148.56,32.0777]
[1719983022050,15.25,148.61,148.56,38.8089]
[1719983022249,15.25,148.61,148.56,23.5589]
[1719983023459,15.25,148.62,148.57,15.25]
[1719983023661,15.25,148.62,148.58,6.73]
[1719983023866,22.77660776,148.64,148.59,32.0743]
[1719983024080,7.52660776,148.64,148.6,15.25]
[1719983024251,22.77660776,148.64,148.59,32.0743]
[1719983024452,7.52660776,148.64,148.6,6.7294]
[1719983024788,22.77660776,148.64,148.6,6.7294]
[1719983025278,7.52660776,148.64,148.6,6.7294]
[1719983025459,22.77660776,148.64,148.59,38.8041]
[1719983025662,22.77660776,148.64,148.59,23.5541]
[1719983027063,7.52660776,148.64,148.6,6.7293]
[1719983027273,7.52660776,148.64,148.6,21.9793]
[1719983027469,0.5,148.64,148.6,21.9793]
[1719983029971,0.5,148.64,148.59,38.0854]
[1719983030158,15.75,148.64,148.59,38.0854]
[1719983030579,15.75,148.64,148.59,16.8243]
[1719983030752,15.75,148.64,148.56,6.7309]
[1719983031079,15.25,148.62,148.57,26.7305]
[1719983031580,15.25,148.62,148.57,41.9805]
[1719983031958,15.25,148.63,148.58,15.25]
[1719983032304,15.25,148.63,148.58,21.9802]
[1719983032977,15.25,148.63,148.58,6.7302]
[1719983033574,15.25,148.62,148.58,6.7302]
[1719983034466,15.25,148.63,148.58,21.9802]
[1719983037867,22.27258505,148.63,148.58,21.9802]
[1719983039470,15.25,148.61,148.57,16.8267]
[1719983039668,15.25,148.61,148.54,15.7426]
[1719983039669,15.25,148.59,148.54,32.5726]
[1719983039884,15.25,148.59,148.55,6.7314]
[1719983040076,15.25,148.59,148.56,6.7312]
[1719983040389,15.25,148.6,148.57,6.7306]
[1719983040690,15.25,148.6,148.54,15.7426]
[1719983040870,15.25,148.58,148.54,15.7426]
[1719983041186,15.25,148.58,148.55,6.7315]
[1719983041360,15.25,148.59,148.56,8.07725225]
[1719983041882,15.25,148.6,148.56,8.07725225]
[1719983042886,5.87953945,148.62,148.57,16.8263]
[1719983043086,22.27258505,148.63,148.58,6.73]
[1719983043289,22.27258505,148.63,148.59,16.8241]
[1719983043477,22.27258505,148.63,148.58,15.25]
[1719983043673,7.02258505,148.63,148.57,6.7307]
[1719983043871,15.25,148.61,148.57,6.7307]
[1719983044796,15.25,148.62,148.58,6.7301]
[1719983044987,15.25,148.62,148.59,6.7297]
[1719983045170,22.27258505,148.63,148.59,6.7297]
[1719983045871,7.02258505,148.63,148.6,16.8228]
[1719983046070,0.5,148.64,148.62,6.7285]
[1719983047899,0.5,148.64,148.61,21.9789]
[1719983048068,0.5,148.64,148.6,38.8022]
[1719983048269,0.5,148.64,148.61,6.7289]
[1719983048692,0.5,148.64,148.6,32.0728]
[1719983048994,0.5,148.64,148.6,38.8022]
[1719983050074,0.5,148.64,148.61,6.7289]
[1719983050372,0.5,148.64,148.63,16.8202]
[1719983050576,0.5,148.64,148.63,23.5483]
[1719983050991,0.5,148.64,148.63,16.8202]
[1719983051172,15.75,148.64,148.6,16.8236]
[1719983051573,15.75,148.64,148.62,6.7283]
[1719983051574,0.5,148.64,148.62,6.7283]
[1719983052206,0.5,148.64,148.61,6.7289]
[1719983052378,15.75,148.64,148.6,23.5529]
[1719983053175,15.75,148.64,148.59,6.7299]
[1719983053176,0.5,148.64,148.59,6.7299]
[1719983053392,0.5,148.64,148.57,16.8263]
[1719983053393,15.25,148.61,148.57,16.8263]
[1719983053595,15.25,148.61,148.57,23.5568]
[1719983053981,15.25,148.61,148.58,6.7302]
[1719983055393,15.25,148.61,148.57,23.557]
[1719983056692,15.25,148.61,148.58,6.7303]
[1719983057278,7.02488615,148.62,148.59,6.7298]
[1719983057598,7.02488615,148.62,148.6,6.7293]
[1719983058609,7.02488615,148.62,148.59,6.7297]
[1719983058787,7.02488615,148.62,148.59,16.8242]
[1719983059102,15.25,148.62,148.59,16.8242]
[1719983059803,15.25,148.62,148.59,23.554]
[1719983060518,7.02413569,148.63,148.57,6.7307]
[1719983060683,15.25,148.61,148.57,6.7307]
[1719983061599,15.25,148.6,148.57,6.7307]
[1719983062183,15.25,148.6,148.58,6.7302]
[1719983062586,15.25,148.61,148.58,6.7302]
[1719983062987,15.25,148.62,148.6,6.729]
[1719983063495,15.25,148.62,148.59,6.7299]
[1719983064394,7.02413569,148.63,148.6,6.7293]
[1719983064595,15.25,148.62,148.6,6.7293]
[1719983065701,15.25,148.62,148.58,23.555]
[1719983065907,15.25,148.6,148.55,16.8286]
[1719983066079,15.25,148.6,148.57,6.7305]
[1719983066284,15.25,148.6,148.58,6.7303]
[1719983066479,15.25,148.61,148.58,6.7303]
[1719983066705,15.25,148.61,148.59,6.7298]